[Event "Titled Tuesday Blitz March 07 Early 2023"]
[White "Biriukov, Ilja"]
[Black "Cella, Glaucio Dalla Cortt"]
[WhiteFideId "4113373"]
[BlackFideId "2119455"]
[WhiteElo "2426"]
[BlackElo "2011"]
[Result "0-1"]
[Round "07"]
[TimeControl "180+2"]
[Date "2023.03.07"]
[WhiteClock "0:00:22"]
[BlackClock "0:00:51"]

1. c4 {[%clk 0:03:00]}  c5 {[%clk 0:03:00]} 2. Nc3 {[%clk 0:03:00]}  Nc6 {[%clk 0:03:01]} 3. g3 {[%clk 0:02:59]}  g6 {[%clk 0:03:01]} 4. Bg2 {[%clk 0:03:00]}  Bg7 {[%clk 0:03:02]} 5. e3 {[%clk 0:02:59]}  Nf6 {[%clk 0:03:03]} 6. Nge2 {[%clk 0:02:59]}  O-O {[%clk 0:03:03]} 7. O-O {[%clk 0:03:00]}  d6 {[%clk 0:03:02]} 8. b3 {[%clk 0:02:58]}  e5 {[%clk 0:02:36]} 9. Bb2 {[%clk 0:02:57]}  Be6 {[%clk 0:02:36]} 10. d3 {[%clk 0:02:56]}  Rb8 {[%clk 0:02:35]} 11. Nd5 {[%clk 0:02:48]}  h5 {[%clk 0:02:28]} 12. Nec3 {[%clk 0:02:44]}  Ng4 {[%clk 0:02:26]} 13. h3 {[%clk 0:02:41]}  Nh6 {[%clk 0:02:23]} 14. Kh2 {[%clk 0:02:41]}  f5 {[%clk 0:02:22]} 15. f4 {[%clk 0:02:40]}  Kh7 {[%clk 0:02:18]} 16. a3 {[%clk 0:02:34]}  a6 {[%clk 0:02:18]} 17. Qc2 {[%clk 0:02:33]}  h4 {[%clk 0:02:06]} 18. b4 {[%clk 0:02:15]}  hxg3+ {[%clk 0:02:06]} 19. Kxg3 {[%clk 0:02:13]}  exf4+ {[%clk 0:02:05]} 20. Nxf4 {[%clk 0:02:07]}  Be5 {[%clk 0:01:56]} 21. Nd5 {[%clk 0:01:57]}  Bf7 {[%clk 0:01:51]} 22. Kf2 {[%clk 0:01:37]}  Bxb2 {[%clk 0:01:40]} 23. Qxb2 {[%clk 0:01:37]}  Ne5 {[%clk 0:01:41]} 24. Qc2 {[%clk 0:01:26]}  g5 {[%clk 0:01:35]} 25. Ne2 {[%clk 0:01:25]}  b5 {[%clk 0:01:35]} 26. d4 {[%clk 0:01:21]}  Nxc4 {[%clk 0:01:33]} 27. bxc5 {[%clk 0:01:09]}  g4 {[%clk 0:01:33]} 28. Kg1 {[%clk 0:00:56]}  Bxd5 {[%clk 0:01:29]} 29. Bxd5 {[%clk 0:00:53]}  Nxe3 {[%clk 0:01:30]} 30. Qa2 {[%clk 0:00:48]}  Qh4 {[%clk 0:01:21]} 31. Nf4 {[%clk 0:00:42]}  Nxf1 {[%clk 0:01:21]} 32. Rxf1 {[%clk 0:00:40]}  dxc5 {[%clk 0:01:20]} 33. dxc5 {[%clk 0:00:38]}  gxh3 {[%clk 0:01:20]} 34. c6 {[%clk 0:00:35]}  Ng4 {[%clk 0:01:08]} 35. Qe2 {[%clk 0:00:28]}  Rbe8 {[%clk 0:01:07]} 36. Be6 {[%clk 0:00:25]}  Rxe6 {[%clk 0:00:52]} 37. Qxe6 {[%clk 0:00:22]}  Qg3+ {[%clk 0:00:51]} 0-1


[Site "https://www.chess.com"]

[Event "Titled Tuesday Blitz March 07 Early 2023"]
[White "Carrasco Miranda, Andres"]
[Black "Hartikainen, Jarmo"]
[WhiteFideId "3405990"]
[BlackFideId "503134"]
[WhiteElo "2183"]
[BlackElo "2196"]
[Result "1-0"]
[Round "07"]
[TimeControl "180+2"]
[Date "2023.03.07"]
[WhiteClock "0:00:20"]
[BlackClock "0:00:02"]

1. d4 {[%clk 0:03:00]}  Nf6 {[%clk 0:02:59]} 2. c4 {[%clk 0:02:59]}  g6 {[%clk 0:02:59]} 3. g3 {[%clk 0:02:59]}  Bg7 {[%clk 0:02:59]} 4. Bg2 {[%clk 0:02:59]}  d5 {[%clk 0:02:56]} 5. cxd5 {[%clk 0:02:58]}  Nxd5 {[%clk 0:02:56]} 6. Nc3 {[%clk 0:02:58]}  Nxc3 {[%clk 0:02:55]} 7. bxc3 {[%clk 0:02:59]}  O-O {[%clk 0:02:55]} 8. Nf3 {[%clk 0:02:59]}  c5 {[%clk 0:02:55]} 9. O-O {[%clk 0:02:58]}  cxd4 {[%clk 0:02:49]} 10. cxd4 {[%clk 0:02:59]}  Nc6 {[%clk 0:02:48]} 11. Be3 {[%clk 0:02:57]}  Bg4 {[%clk 0:02:42]} 12. Ne5 {[%clk 0:02:38]}  Nxe5 {[%clk 0:02:34]} 13. dxe5 {[%clk 0:02:39]}  Bxe5 {[%clk 0:02:30]} 14. Rb1 {[%clk 0:02:36]}  Qxd1 {[%clk 0:02:25]} 15. Rfxd1 {[%clk 0:02:37]}  Bxe2 {[%clk 0:02:20]} 16. Rd7 {[%clk 0:02:30]}  Ba6 {[%clk 0:01:24]} 17. Bxb7 {[%clk 0:02:25]}  Rab8 {[%clk 0:01:07]} 18. Bxa7 {[%clk 0:02:21]}  Rxb7 {[%clk 0:01:02]} 19. Rbxb7 {[%clk 0:02:17]}  Bxb7 {[%clk 0:01:01]} 20. Rxb7 {[%clk 0:02:18]}  Bd6 {[%clk 0:00:46]} 21. a4 {[%clk 0:02:18]}  Ra8 {[%clk 0:00:41]} 22. a5 {[%clk 0:02:15]}  Kf8 {[%clk 0:00:40]} 23. g4 {[%clk 0:02:04]}  Ke8 {[%clk 0:00:40]} 24. h4 {[%clk 0:02:04]}  Kd8 {[%clk 0:00:38]} 25. Bb6+ {[%clk 0:02:01]}  Kc8 {[%clk 0:00:32]} 26. Ra7 {[%clk 0:02:00]}  Rxa7 {[%clk 0:00:31]} 27. Bxa7 {[%clk 0:02:01]}  Kb7 {[%clk 0:00:31]} 28. Bb6 {[%clk 0:01:57]}  Ka6 {[%clk 0:00:30]} 29. Kg2 {[%clk 0:01:51]}  Bb4 {[%clk 0:00:30]} 30. Bd8 {[%clk 0:01:50]}  e6 {[%clk 0:00:30]} 31. Kf3 {[%clk 0:01:48]}  Bxa5 {[%clk 0:00:30]} 32. Bxa5 {[%clk 0:01:47]}  Kxa5 {[%clk 0:00:29]} 33. Ke4 {[%clk 0:01:48]}  Kb5 {[%clk 0:00:19]} 34. Ke5 {[%clk 0:01:48]}  f5 {[%clk 0:00:09]} 35. g5 {[%clk 0:01:40]}  Kc4 {[%clk 0:00:08]} 36. Kxe6 {[%clk 0:01:40]}  f4 {[%clk 0:00:08]} 37. Ke5 {[%clk 0:01:36]}  f3 {[%clk 0:00:08]} 38. Ke4 {[%clk 0:01:35]}  Kc5 {[%clk 0:00:08]} 39. Kxf3 {[%clk 0:01:35]}  Kd5 {[%clk 0:00:09]} 40. Kf4 {[%clk 0:01:34]}  Kd4 {[%clk 0:00:09]} 41. Kf3 {[%clk 0:00:51]}  Kd5 {[%clk 0:00:09]} 42. Ke3 {[%clk 0:00:51]}  Ke5 {[%clk 0:00:09]} 43. f4+ {[%clk 0:00:37]}  Kd5 {[%clk 0:00:08]} 44. f5 {[%clk 0:00:30]}  gxf5 {[%clk 0:00:06]} 45. Kf4 {[%clk 0:00:26]}  Ke6 {[%clk 0:00:07]} 46. h5 {[%clk 0:00:26]}  Kf7 {[%clk 0:00:05]} 47. Kxf5 {[%clk 0:00:26]}  Kg7 {[%clk 0:00:05]} 48. Ke6 {[%clk 0:00:25]}  Kg8 {[%clk 0:00:03]} 49. Kf6 {[%clk 0:00:25]}  Kf8 {[%clk 0:00:03]} 50. g6 {[%clk 0:00:20]}  hxg6 {[%clk 0:00:03]} 51. hxg6 {[%clk 0:00:20]}  Kg8 {[%clk 0:00:02]} 52. g7 {[%clk 0:00:20]} 1-0


[Site "https://www.chess.com"]

[Event "Titled Tuesday Blitz March 07 Early 2023"]
[White "Kiseleva, Arina"]
[Black "Liu, Kelsey"]
[WhiteFideId "4164989"]
[BlackFideId "30944481"]
[WhiteElo "1756"]
[BlackElo "2283"]
[Result "0-1"]
[Round "07"]
[TimeControl "180+2"]
[Date "2023.03.07"]
[WhiteClock "0:00:02"]
[BlackClock "0:01:04"]

1. d4 {[%clk 0:03:00]}  Nf6 {[%clk 0:02:58]} 2. Nf3 {[%clk 0:03:00]}  e6 {[%clk 0:02:57]} 3. e3 {[%clk 0:02:59]}  d5 {[%clk 0:02:57]} 4. Bd3 {[%clk 0:03:00]}  Be7 {[%clk 0:02:56]} 5. Nbd2 {[%clk 0:02:59]}  O-O {[%clk 0:02:55]} 6. O-O {[%clk 0:02:59]}  c5 {[%clk 0:02:55]} 7. b3 {[%clk 0:02:58]}  Nc6 {[%clk 0:02:53]} 8. Bb2 {[%clk 0:02:58]}  Bd7 {[%clk 0:02:45]} 9. Ne5 {[%clk 0:02:58]}  Re8 {[%clk 0:02:40]} 10. Qf3 {[%clk 0:02:52]}  Qc7 {[%clk 0:02:37]} 11. Qh3 {[%clk 0:02:43]}  Nb4 {[%clk 0:02:36]} 12. f4 {[%clk 0:02:33]}  Nxd3 {[%clk 0:02:33]} 13. cxd3 {[%clk 0:02:32]}  Bb5 {[%clk 0:02:29]} 14. a4 {[%clk 0:02:29]}  Ba6 {[%clk 0:02:29]} 15. Rac1 {[%clk 0:02:13]}  Qa5 {[%clk 0:02:27]} 16. Ndf3 {[%clk 0:02:09]}  Rac8 {[%clk 0:02:28]} 17. Ng5 {[%clk 0:02:05]}  Rf8 {[%clk 0:02:01]} 18. Nxe6 {[%clk 0:01:41]}  fxe6 {[%clk 0:01:44]} 19. Qxe6+ {[%clk 0:01:41]}  Kh8 {[%clk 0:01:44]} 20. Qxe7 {[%clk 0:00:52]}  Qd2 {[%clk 0:01:44]} 21. Qe6 {[%clk 0:00:22]}  Rce8 {[%clk 0:01:22]} 22. Nf7+ {[%clk 0:00:17]}  Rxf7 {[%clk 0:01:22]} 23. Qxf7 {[%clk 0:00:16]}  Qxb2 {[%clk 0:01:22]} 24. Rxc5 {[%clk 0:00:09]}  Qe2 {[%clk 0:01:11]} 25. Rc7 {[%clk 0:00:05]}  Qxe3+ {[%clk 0:01:10]} 26. Kh1 {[%clk 0:00:06]}  Rg8 {[%clk 0:01:05]} 27. h3 {[%clk 0:00:06]}  Bxd3 {[%clk 0:01:05]} 28. Rfc1 {[%clk 0:00:05]}  Be4 {[%clk 0:01:03]} 29. Rc8 {[%clk 0:00:03]}  Qxh3+ {[%clk 0:01:03]} 30. Kg1 {[%clk 0:00:02]}  Qxg2# {[%clk 0:01:04]} 0-1


[Site "https://www.chess.com"]

[Event "Titled Tuesday Blitz March 07 Early 2023"]
[White "Osuna Vega, Enrique"]
[Black "Clawitter, Craig"]
[WhiteFideId "2219549"]
[BlackFideId "2023105"]
[WhiteElo "2171"]
[BlackElo "2278"]
[Result "0-1"]
[Round "07"]
[TimeControl "180+2"]
[Date "2023.03.07"]
[WhiteClock "0:00:06"]
[BlackClock "0:00:15"]

1. e4 {[%clk 0:02:59]}  e6 {[%clk 0:03:00]} 2. d4 {[%clk 0:02:58]}  d5 {[%clk 0:03:00]} 3. Nc3 {[%clk 0:02:59]}  Bb4 {[%clk 0:03:00]} 4. Ne2 {[%clk 0:02:59]}  dxe4 {[%clk 0:02:59]} 5. a3 {[%clk 0:02:58]}  Be7 {[%clk 0:03:00]} 6. Nxe4 {[%clk 0:02:58]}  Nf6 {[%clk 0:03:01]} 7. N2g3 {[%clk 0:02:57]}  Nc6 {[%clk 0:02:57]} 8. Be3 {[%clk 0:02:55]}  O-O {[%clk 0:02:48]} 9. c3 {[%clk 0:02:44]}  e5 {[%clk 0:02:48]} 10. dxe5 {[%clk 0:02:38]}  Nxe5 {[%clk 0:02:45]} 11. Qxd8 {[%clk 0:02:36]}  Rxd8 {[%clk 0:02:46]} 12. Be2 {[%clk 0:02:36]}  Nd3+ {[%clk 0:02:30]} 13. Bxd3 {[%clk 0:02:33]}  Rxd3 {[%clk 0:02:31]} 14. Ke2 {[%clk 0:02:31]}  Rd8 {[%clk 0:02:24]} 15. Rhd1 {[%clk 0:02:20]}  Bd7 {[%clk 0:02:16]} 16. Nxf6+ {[%clk 0:02:16]}  Bxf6 {[%clk 0:02:15]} 17. Ne4 {[%clk 0:02:16]}  Bb5+ {[%clk 0:02:01]} 18. Ke1 {[%clk 0:01:56]}  Be7 {[%clk 0:01:54]} 19. Rxd8+ {[%clk 0:01:51]}  Rxd8 {[%clk 0:01:53]} 20. Rd1 {[%clk 0:01:51]}  Bc6 {[%clk 0:01:47]} 21. Rxd8+ {[%clk 0:01:49]}  Bxd8 {[%clk 0:01:48]} 22. f3 {[%clk 0:01:35]}  b6 {[%clk 0:01:41]} 23. Nd2 {[%clk 0:01:31]}  Kf8 {[%clk 0:01:30]} 24. Bf4 {[%clk 0:01:27]}  Bd5 {[%clk 0:01:26]} 25. Ke2 {[%clk 0:01:24]}  Ke7 {[%clk 0:01:24]} 26. Kd3 {[%clk 0:01:10]}  Ke6 {[%clk 0:01:21]} 27. c4 {[%clk 0:01:07]}  Bb7 {[%clk 0:01:18]} 28. b4 {[%clk 0:01:04]}  h6 {[%clk 0:01:09]} 29. Nb3 {[%clk 0:00:59]}  g5 {[%clk 0:01:06]} 30. Be3 {[%clk 0:00:56]}  f5 {[%clk 0:01:02]} 31. Nd4+ {[%clk 0:00:41]}  Kf6 {[%clk 0:01:02]} 32. Nb5 {[%clk 0:00:37]}  a6 {[%clk 0:00:42]} 33. Nc3 {[%clk 0:00:36]}  f4 {[%clk 0:00:40]} 34. Bd4+ {[%clk 0:00:34]}  Kf5 {[%clk 0:00:37]} 35. h3 {[%clk 0:00:26]}  h5 {[%clk 0:00:36]} 36. c5 {[%clk 0:00:19]}  g4 {[%clk 0:00:35]} 37. hxg4+ {[%clk 0:00:19]}  hxg4 {[%clk 0:00:35]} 38. Ke2 {[%clk 0:00:17]}  Be7 {[%clk 0:00:29]} 39. cxb6 {[%clk 0:00:16]}  cxb6 {[%clk 0:00:29]} 40. Bxb6 {[%clk 0:00:16]}  gxf3+ {[%clk 0:00:20]} 41. gxf3 {[%clk 0:00:17]}  Bf6 {[%clk 0:00:19]} 42. Nd1 {[%clk 0:00:13]}  Bc6 {[%clk 0:00:17]} 43. Nf2 {[%clk 0:00:11]}  Bb2 {[%clk 0:00:15]} 44. Bc5 {[%clk 0:00:06]}  Bxa3 {[%clk 0:00:15]} 45. b5 {[%clk 0:00:06]}  Bxb5+ {[%clk 0:00:15]} 0-1


[Site "https://www.chess.com"]

[Event "Titled Tuesday Blitz March 07 Early 2023"]
[White "Abrosimov, Vladimir"]
[Black "Johnson, Ben"]
[WhiteFideId "4166892"]
[BlackFideId "2010917"]
[WhiteElo "2336"]
[BlackElo "2148"]
[Result "1-0"]
[Round "07"]
[TimeControl "180+2"]
[Date "2023.03.07"]
[WhiteClock "0:00:51"]
[BlackClock "0:00:54"]

1. c4 {[%clk 0:03:00]}  e5 {[%clk 0:02:57]} 2. Nc3 {[%clk 0:03:00]}  Nf6 {[%clk 0:02:57]} 3. g3 {[%clk 0:03:00]}  d5 {[%clk 0:02:55]} 4. cxd5 {[%clk 0:02:59]}  Nxd5 {[%clk 0:02:56]} 5. Bg2 {[%clk 0:02:58]}  Nb6 {[%clk 0:02:57]} 6. d3 {[%clk 0:02:57]}  Be7 {[%clk 0:02:56]} 7. Nf3 {[%clk 0:02:54]}  Nc6 {[%clk 0:02:56]} 8. O-O {[%clk 0:02:53]}  O-O {[%clk 0:02:56]} 9. a3 {[%clk 0:02:52]}  a5 {[%clk 0:02:56]} 10. e3 {[%clk 0:02:51]}  Be6 {[%clk 0:02:54]} 11. d4 {[%clk 0:02:50]}  exd4 {[%clk 0:02:51]} 12. Nxd4 {[%clk 0:02:49]}  Nxd4 {[%clk 0:02:50]} 13. Qxd4 {[%clk 0:02:46]}  Qxd4 {[%clk 0:02:46]} 14. exd4 {[%clk 0:02:47]}  c6 {[%clk 0:02:44]} 15. Bf4 {[%clk 0:02:44]}  Nc4 {[%clk 0:02:37]} 16. d5 {[%clk 0:02:28]}  Bd7 {[%clk 0:02:12]} 17. dxc6 {[%clk 0:02:16]}  Bxc6 {[%clk 0:02:10]} 18. Rab1 {[%clk 0:01:58]}  Bxg2 {[%clk 0:02:04]} 19. Kxg2 {[%clk 0:01:56]}  Rfd8 {[%clk 0:02:01]} 20. Rfd1 {[%clk 0:01:49]}  Rxd1 {[%clk 0:01:58]} 21. Nxd1 {[%clk 0:01:41]}  Rd8 {[%clk 0:01:51]} 22. Ne3 {[%clk 0:01:30]}  Nd2 {[%clk 0:01:11]} 23. Rd1 {[%clk 0:01:29]}  a4 {[%clk 0:01:10]} 24. Nf5 {[%clk 0:01:23]}  Bf6 {[%clk 0:01:09]} 25. Rxd2 {[%clk 0:01:15]}  Rxd2 {[%clk 0:01:06]} 26. Bxd2 {[%clk 0:01:14]}  Bxb2 {[%clk 0:01:06]} 27. Bb4 {[%clk 0:01:14]}  g6 {[%clk 0:01:04]} 28. Nd6 {[%clk 0:01:13]}  b6 {[%clk 0:01:02]} 29. Nc4 {[%clk 0:01:12]}  Bd4 {[%clk 0:01:01]} 30. f4 {[%clk 0:01:06]}  f5 {[%clk 0:00:59]} 31. Bd2 {[%clk 0:01:00]}  Kf7 {[%clk 0:00:59]} 32. Be3 {[%clk 0:01:00]}  Bxe3 {[%clk 0:00:56]} 33. Nxe3 {[%clk 0:01:00]}  Ke6 {[%clk 0:00:56]} 34. Kf3 {[%clk 0:00:54]}  Kd6 {[%clk 0:00:53]} 35. Ke2 {[%clk 0:00:53]}  Kc5 {[%clk 0:00:54]} 36. Kd3 {[%clk 0:00:53]}  b5 {[%clk 0:00:54]} 37. Nc2 {[%clk 0:00:52]}  Kd5 {[%clk 0:00:54]} 38. Nb4+ {[%clk 0:00:52]}  Kc5 {[%clk 0:00:54]} 39. Kc3 {[%clk 0:00:51]} 1-0


[Site "https://www.chess.com"]

[Event "Titled Tuesday Blitz March 07 Early 2023"]
[White "Martinez, Shawn"]
[Black "Baruch, Liam"]
[WhiteFideId "2039770"]
[BlackFideId "14322064"]
[WhiteElo "2174"]
[BlackElo "2055"]
[Result "0-1"]
[Round "07"]
[TimeControl "180+2"]
[Date "2023.03.07"]
[WhiteClock "0:00:04"]
[BlackClock "0:00:13"]

1. e4 {[%clk 0:01:34]}  e5 {[%clk 0:02:59]} 2. Nf3 {[%clk 0:01:34]}  Nc6 {[%clk 0:02:59]} 3. d4 {[%clk 0:01:34]}  exd4 {[%clk 0:02:59]} 4. Nxd4 {[%clk 0:01:35]}  Bc5 {[%clk 0:02:59]} 5. Nb3 {[%clk 0:01:35]}  Bb6 {[%clk 0:02:59]} 6. Qe2 {[%clk 0:01:34]}  d6 {[%clk 0:02:52]} 7. Nc3 {[%clk 0:01:28]}  Nf6 {[%clk 0:02:50]} 8. Bg5 {[%clk 0:01:26]}  h6 {[%clk 0:02:51]} 9. Bh4 {[%clk 0:01:19]}  g5 {[%clk 0:02:50]} 10. Bg3 {[%clk 0:01:18]}  O-O {[%clk 0:02:48]} 11. O-O-O {[%clk 0:01:12]}  Qe7 {[%clk 0:02:42]} 12. h4 {[%clk 0:01:05]}  g4 {[%clk 0:02:32]} 13. Qd2 {[%clk 0:00:57]}  Kh7 {[%clk 0:02:23]} 14. Bd3 {[%clk 0:00:55]}  Ne5 {[%clk 0:02:20]} 15. Nd5 {[%clk 0:00:51]}  Nxd5 {[%clk 0:02:05]} 16. exd5+ {[%clk 0:00:50]}  Nxd3+ {[%clk 0:02:05]} 17. Qxd3+ {[%clk 0:00:51]}  f5 {[%clk 0:02:04]} 18. Rhe1 {[%clk 0:00:50]}  Qf6 {[%clk 0:01:57]} 19. Bf4 {[%clk 0:00:37]}  Bxf2 {[%clk 0:01:36]} 20. Re2 {[%clk 0:00:29]}  Bxh4 {[%clk 0:01:33]} 21. g3 {[%clk 0:00:20]}  Bg5 {[%clk 0:01:31]} 22. Rde1 {[%clk 0:00:20]}  Bxf4+ {[%clk 0:01:29]} 23. gxf4 {[%clk 0:00:21]}  Bd7 {[%clk 0:01:23]} 24. Nd4 {[%clk 0:00:19]}  Rf7 {[%clk 0:01:10]} 25. Re6 {[%clk 0:00:13]}  Bxe6 {[%clk 0:01:04]} 26. Rxe6 {[%clk 0:00:12]}  Qh4 {[%clk 0:01:03]} 27. Nxf5 {[%clk 0:00:12]}  Qh1+ {[%clk 0:00:57]} 28. Kd2 {[%clk 0:00:11]}  Qg2+ {[%clk 0:00:41]} 29. Kc3 {[%clk 0:00:11]}  Qf3 {[%clk 0:00:30]} 30. Ne3+ {[%clk 0:00:07]}  Kg8 {[%clk 0:00:19]} 31. Rxh6 {[%clk 0:00:04]}  Rg7 {[%clk 0:00:13]} 0-1


[Site "https://www.chess.com"]

[Event "Titled Tuesday Blitz March 07 Early 2023"]
[White "Dilmukhametov, Artur"]
[Black "Burdalev, Kirill"]
[WhiteFideId "24179922"]
[BlackFideId "14121913"]
[WhiteElo "2199"]
[BlackElo "2236"]
[Result "0-1"]
[Round "07"]
[TimeControl "180+2"]
[Date "2023.03.07"]
[WhiteClock "0:00:35"]
[BlackClock "0:00:28"]

1. d4 {[%clk 0:02:59]}  Nf6 {[%clk 0:03:00]} 2. Nc3 {[%clk 0:02:56]}  d5 {[%clk 0:02:57]} 3. Bf4 {[%clk 0:02:55]}  c6 {[%clk 0:02:53]} 4. e3 {[%clk 0:02:54]}  Bf5 {[%clk 0:02:51]} 5. Nf3 {[%clk 0:02:51]}  e6 {[%clk 0:02:50]} 6. Ne5 {[%clk 0:02:51]}  h6 {[%clk 0:02:40]} 7. g4 {[%clk 0:02:50]}  Bh7 {[%clk 0:02:39]} 8. h4 {[%clk 0:02:49]}  Bb4 {[%clk 0:02:35]} 9. g5 {[%clk 0:02:46]}  Ne4 {[%clk 0:02:34]} 10. Rc1 {[%clk 0:01:57]}  Nxc3 {[%clk 0:02:17]} 11. bxc3 {[%clk 0:01:56]}  Bxc3+ {[%clk 0:02:17]} 12. Ke2 {[%clk 0:01:55]}  Bf5 {[%clk 0:02:06]} 13. Bh3 {[%clk 0:01:38]}  Bxh3 {[%clk 0:01:57]} 14. Rxh3 {[%clk 0:01:36]}  hxg5 {[%clk 0:01:55]} 15. Bxg5 {[%clk 0:01:28]}  Qa5 {[%clk 0:01:46]} 16. Nd3 {[%clk 0:01:21]}  Nd7 {[%clk 0:01:40]} 17. Qg1 {[%clk 0:01:16]}  f6 {[%clk 0:01:21]} 18. Bf4 {[%clk 0:01:13]}  g5 {[%clk 0:01:19]} 19. Bg3 {[%clk 0:01:10]}  O-O-O {[%clk 0:01:15]} 20. Qg2 {[%clk 0:01:09]}  g4 {[%clk 0:01:01]} 21. Rhh1 {[%clk 0:01:07]}  e5 {[%clk 0:00:59]} 22. dxe5 {[%clk 0:01:05]}  fxe5 {[%clk 0:00:53]} 23. Qh2 {[%clk 0:01:03]}  e4 {[%clk 0:00:49]} 24. Nf4 {[%clk 0:01:01]}  Qa6+ {[%clk 0:00:43]} 25. Kd1 {[%clk 0:01:01]}  d4 {[%clk 0:00:37]} 26. Ne6 {[%clk 0:01:00]}  dxe3 {[%clk 0:00:34]} 27. fxe3 {[%clk 0:00:54]}  Ne5+ {[%clk 0:00:27]} 28. Nxd8 {[%clk 0:00:35]}  Rxd8+ {[%clk 0:00:28]} 0-1


[Site "https://www.chess.com"]

[Event "Titled Tuesday Blitz March 07 Early 2023"]
[White "Jesusesmifuerza"]
[Black "Prohorov, Olexandr"]
[BlackFideId "14105578"]
[WhiteElo "2032"]
[BlackElo "1993"]
[Result "0-1"]
[Round "07"]
[TimeControl "180+2"]
[Date "2023.03.07"]
[WhiteClock "0:00:13"]
[BlackClock "0:00:10"]

1. d4 {[%clk 0:03:00]}  Nf6 {[%clk 0:02:54]} 2. Bg5 {[%clk 0:03:00]}  c5 {[%clk 0:02:53]} 3. d5 {[%clk 0:02:58]}  Qb6 {[%clk 0:02:53]} 4. Nc3 {[%clk 0:02:57]}  Qxb2 {[%clk 0:02:47]} 5. Bd2 {[%clk 0:02:58]}  Qb6 {[%clk 0:02:43]} 6. e4 {[%clk 0:02:58]}  d6 {[%clk 0:02:44]} 7. f4 {[%clk 0:02:51]}  Bg4 {[%clk 0:02:42]} 8. Be2 {[%clk 0:02:42]}  Bxe2 {[%clk 0:02:41]} 9. Qxe2 {[%clk 0:02:43]}  g6 {[%clk 0:02:19]} 10. e5 {[%clk 0:02:41]}  dxe5 {[%clk 0:02:05]} 11. fxe5 {[%clk 0:02:42]}  Nh5 {[%clk 0:02:03]} 12. g4 {[%clk 0:02:33]}  Ng7 {[%clk 0:01:56]} 13. Nf3 {[%clk 0:02:25]}  Nd7 {[%clk 0:01:56]} 14. Rb1 {[%clk 0:02:14]}  Qc7 {[%clk 0:01:49]} 15. d6 {[%clk 0:02:11]}  Qc6 {[%clk 0:01:43]} 16. O-O {[%clk 0:01:59]}  Ne6 {[%clk 0:01:36]} 17. Ng5 {[%clk 0:01:38]}  Nd4 {[%clk 0:01:31]} 18. Qf2 {[%clk 0:01:34]}  Nxe5 {[%clk 0:01:21]} 19. d7+ {[%clk 0:01:06]}  Qxd7 {[%clk 0:01:16]} 20. Nxf7 {[%clk 0:01:01]}  Qxg4+ {[%clk 0:01:09]} 21. Kh1 {[%clk 0:00:57]}  Qf3+ {[%clk 0:01:10]} 22. Qxf3 {[%clk 0:00:56]}  Ndxf3 {[%clk 0:01:08]} 23. Nxh8 {[%clk 0:00:53]}  Nxd2 {[%clk 0:01:04]} 24. Rxf8+ {[%clk 0:00:38]}  Kxf8 {[%clk 0:01:03]} 25. Rxb7 {[%clk 0:00:39]}  Rd8 {[%clk 0:00:40]} 26. Rxa7 {[%clk 0:00:35]}  Ndf3 {[%clk 0:00:38]} 27. Kg2 {[%clk 0:00:29]}  Rd2+ {[%clk 0:00:36]} 28. Kg3 {[%clk 0:00:29]}  Rxc2 {[%clk 0:00:30]} 29. Ne4 {[%clk 0:00:29]}  Rxh2 {[%clk 0:00:25]} 30. Ng5 {[%clk 0:00:25]}  Kg7 {[%clk 0:00:22]} 31. Nxf3 {[%clk 0:00:24]}  Nxf3 {[%clk 0:00:17]} 32. Kxf3 {[%clk 0:00:25]}  Kxh8 {[%clk 0:00:17]} 33. a4 {[%clk 0:00:25]}  Ra2 {[%clk 0:00:15]} 34. Ke4 {[%clk 0:00:24]}  Kg7 {[%clk 0:00:16]} 35. Kd5 {[%clk 0:00:25]}  Kf6 {[%clk 0:00:13]} 36. Kxc5 {[%clk 0:00:25]}  h5 {[%clk 0:00:13]} 37. Kd4 {[%clk 0:00:25]}  h4 {[%clk 0:00:13]} 38. Ke3 {[%clk 0:00:24]}  g5 {[%clk 0:00:13]} 39. Ra8 {[%clk 0:00:25]}  Kf5 {[%clk 0:00:10]} 40. Rf8+ {[%clk 0:00:21]}  Kg4 {[%clk 0:00:10]} 41. Ra8 {[%clk 0:00:18]}  Kg3 {[%clk 0:00:10]} 42. Rg8 {[%clk 0:00:15]}  g4 {[%clk 0:00:10]} 43. Rg7 {[%clk 0:00:14]}  h3 {[%clk 0:00:11]} 44. Rxe7 {[%clk 0:00:14]}  Rxa4 {[%clk 0:00:10]} 45. Rh7 {[%clk 0:00:14]}  Ra8 {[%clk 0:00:09]} 46. Ke2 {[%clk 0:00:13]}  Rf8 {[%clk 0:00:09]} 47. Ke1 {[%clk 0:00:13]}  Kg2 {[%clk 0:00:09]} 48. Ke2 {[%clk 0:00:13]}  g3 {[%clk 0:00:10]} 49. Ke1 {[%clk 0:00:13]}  h2 {[%clk 0:00:10]} 0-1


[Site "https://www.chess.com"]

[Event "Titled Tuesday Blitz March 07 Early 2023"]
[White "Bluebaum, Matthias"]
[Black "Nakamura, Hikaru"]
[WhiteFideId "24651516"]
[BlackFideId "2016192"]
[WhiteElo "2638"]
[BlackElo "2879"]
[Result "1-0"]
[Round "08"]
[TimeControl "180+2"]
[Date "2023.03.07"]
[WhiteClock "0:00:14"]
[BlackClock "0:00:20"]

1. d4 {[%clk 0:03:00]}  Nf6 {[%clk 0:03:00]} 2. c4 {[%clk 0:03:00]}  e6 {[%clk 0:03:00]} 3. Nc3 {[%clk 0:03:01]}  Bb4 {[%clk 0:03:01]} 4. e3 {[%clk 0:03:01]}  O-O {[%clk 0:03:00]} 5. Bd2 {[%clk 0:03:02]}  b6 {[%clk 0:02:55]} 6. Nf3 {[%clk 0:03:02]}  d5 {[%clk 0:02:50]} 7. cxd5 {[%clk 0:03:02]}  exd5 {[%clk 0:02:49]} 8. Rc1 {[%clk 0:03:02]}  Re8 {[%clk 0:02:36]} 9. Ne5 {[%clk 0:03:02]}  c5 {[%clk 0:02:33]} 10. a3 {[%clk 0:02:52]}  cxd4 {[%clk 0:01:45]} 11. exd4 {[%clk 0:02:41]}  Bd6 {[%clk 0:01:26]} 12. Bb5 {[%clk 0:02:40]}  Re7 {[%clk 0:01:18]} 13. O-O {[%clk 0:02:37]}  h6 {[%clk 0:01:18]} 14. Bf4 {[%clk 0:02:06]}  a6 {[%clk 0:01:10]} 15. Bd3 {[%clk 0:02:05]}  Re8 {[%clk 0:01:05]} 16. Qf3 {[%clk 0:02:02]}  Be6 {[%clk 0:01:03]} 17. Rfe1 {[%clk 0:01:54]}  Ra7 {[%clk 0:01:01]} 18. h3 {[%clk 0:01:41]}  Bf8 {[%clk 0:01:01]} 19. Bb1 {[%clk 0:01:22]}  b5 {[%clk 0:00:58]} 20. Qd3 {[%clk 0:01:20]}  g6 {[%clk 0:00:56]} 21. Qd2 {[%clk 0:01:18]}  g5 {[%clk 0:00:48]} 22. Be3 {[%clk 0:01:09]}  Nh5 {[%clk 0:00:44]} 23. Qd1 {[%clk 0:01:02]}  Nf4 {[%clk 0:00:42]} 24. Bxf4 {[%clk 0:01:02]}  gxf4 {[%clk 0:00:42]} 25. Qd3 {[%clk 0:00:55]}  Bg7 {[%clk 0:00:42]} 26. Qh7+ {[%clk 0:00:39]}  Kf8 {[%clk 0:00:43]} 27. Bf5 {[%clk 0:00:37]}  Qf6 {[%clk 0:00:23]} 28. Bxe6 {[%clk 0:00:30]}  fxe6 {[%clk 0:00:24]} 29. Nxd5 {[%clk 0:00:21]}  exd5 {[%clk 0:00:24]} 30. Ng6+ {[%clk 0:00:21]}  Kf7 {[%clk 0:00:25]} 31. Rxe8 {[%clk 0:00:20]}  Kxe8 {[%clk 0:00:26]} 32. Qg8+ {[%clk 0:00:20]}  Bf8 {[%clk 0:00:26]} 33. Rc8+ {[%clk 0:00:15]}  Kd7 {[%clk 0:00:24]} 34. Rxf8 {[%clk 0:00:15]}  Qxd4 {[%clk 0:00:23]} 35. Rxb8 {[%clk 0:00:15]}  Kc6 {[%clk 0:00:22]} 36. Qe6+ {[%clk 0:00:14]}  Kc7 {[%clk 0:00:20]} 1-0


[Site "https://www.chess.com"]